bitfinex-derivatives/quotes_ETHF0:USTF0_20240904
["timestamp","ask_amount","ask_price","bid_price","bid_amount"]
[1725469961346,8.65e-06,2475.2,2475.1,16.9478787]
[1725469961543,8.65e-06,2475.2,2474.8,0.40404]
[1725469961846,0.40399865,2475.2,2475.0,0.404]
[1725469962049,0.3816,2475.1,2475.0,0.40402]
[1725469962252,1.5344,2475.1,2474.9,0.40402]
[1725469962443,1.5344,2475.1,2474.7,3.2078]
[1725469962641,1.5344,2475.1,2474.9,0.40402]
[1725469963551,0.40402,2475.0,2474.8,0.40404]
[1725469963846,1.53441,2475.1,2474.9,0.40403]
[1725469964247,1.1304,2475.1,2474.9,0.40403]
[1725469965255,1.1304,2475.1,2475.0,0.40402]
[1725469965655,5.1704,2475.1,2475.0,0.40402]
[1725469966058,1.1304,2475.1,2475.0,0.40402]
[1725469966449,8.65e-06,2475.2,2475.1,0.404]
[1725469966654,8.65e-06,2475.2,2475.1,3.6118]
[1725469968357,8.65e-06,2475.2,2475.1,4.6218]
[1725469968658,8.65e-06,2475.2,2475.1,9.6718]
[1725469969049,8.65e-06,2475.2,2475.1,5.6318]
[1725469969359,8.65e-06,2475.2,2475.1,9.6718]
[1725469973263,8.65e-06,2475.2,2475.1,0.404]
[1725469974252,8.65e-06,2475.2,2475.1,1.414]
[1725469974562,8.65e-06,2475.2,2475.1,4.6218]
[1725469975859,8.65e-06,2475.2,2475.1,1.414]
[1725469976565,8.65e-06,2475.2,2475.1,4.6218]
[1725469977164,8.65e-06,2475.2,2475.1,8.6618]
[1725469977366,8.65e-06,2475.2,2475.1,9.6718]
[1725469977569,3.70151387,2475.7,2475.1,9.6718]
[1725469977570,3.16994038,2475.6,2475.5,1.41377]
[1725469977866,0.3669,2475.8,2475.6,1.41372]
[1725469977867,0.3592,2475.7,2475.6,1.41372]
[1725469978667,0.3592,2475.7,2475.6,15.05422152]
[1725469979171,0.3592,2475.7,2475.6,15.40312152]
[1725469980464,0.3592,2475.7,2475.6,15.05422152]
[1725469981266,0.3592,2475.7,2475.6,14.04442152]
[1725469982966,0.00605865,2475.9,2475.8,2.42332]
[1725469983171,0.00605865,2475.9,2475.8,7.73112]
[1725469983373,0.00605865,2475.9,2475.8,11.77032]
[1725469984066,0.00605865,2475.9,2475.8,7.73112]
[1725469984270,0.00605865,2475.9,2475.8,6.7214]
[1725469988267,0.00605865,2475.9,2475.8,11.77032]
[1725469988570,0.00605865,2475.9,2475.8,17.77032]
[1725469989471,0.00605865,2475.9,2475.8,16.7606]
[1725469989666,0.00605865,2475.9,2475.8,10.7606]
[1725469989868,0.00605865,2475.9,2475.8,17.77032]
[1725469990067,0.00605865,2475.9,2475.8,10.7606]
[1725469990375,0.00605865,2475.9,2475.8,6.7214]
[1725469995067,0.00605865,2475.9,2475.8,5.71168]
[1725469996478,0.00605865,2475.9,2475.8,6.7214]
[1725469996873,0.00605865,2475.9,2475.8,5.71168]
[1725469999478,0.00605865,2475.9,2475.4,0.00605865]
[1725469999479,4.04525865,2475.9,2475.6,2.1]
[1725469999686,0.3802,2475.8,2475.7,0.4039]
[1725470000081,4.4194,2475.8,2475.7,0.4039]
[1725470001087,4.4194,2475.8,2475.7,1.41366]
[1725470001088,0.3802,2475.8,2475.7,1.41366]
[1725470002778,0.3802,2475.8,2475.7,4.62146]
[1725470002984,0.3802,2475.8,2475.7,5.63122]
[1725470003485,0.00605865,2475.9,2475.8,1.4136]
[1725470003689,0.00605865,2475.9,2475.8,4.52332]
[1725470003883,0.3805,2476.3,2476.2,1.41338]
[1725470004181,0.3805,2476.3,2476.2,6.72118]
[1725470004687,0.3805,2476.3,2476.2,3.51338]
[1725470005182,0.3805,2476.3,2476.2,0.40382]
[1725470005375,4.4189,2476.3,2476.2,0.40382]
[1725470006087,4.8227,2476.3,2476.2,0.40382]
[1725470006682,0.40382,2476.2,2475.9,3.2078]
[1725470006875,0.40382,2476.2,2476.1,0.40384]
[1725470007285,4.44222,2476.2,2476.1,0.40384]
[1725470007785,0.78432,2476.3,2476.2,0.40382]
[1725470008289,4.82272,2476.3,2476.2,0.40382]
[1725470011396,7.99266038,2476.3,2476.2,0.40382]
[1725470011699,0.3805,2476.3,2476.2,1.41338]
[1725470012803,4.8227,2476.3,2476.2,0.40382]
[1725470012992,3.95424038,2476.3,2476.2,0.40382]
[1725470013196,3.95424038,2476.3,2476.0,2.1]
[1725470013197,0.40384,2476.2,2476.1,0.40383]
[1725470013394,0.40385,2476.1,2476.0,0.40384]
[1725470013597,3.57353378,2476.1,2476.0,0.40384]
[1725470013800,7.61193378,2476.1,2476.0,0.40384]
[1725470014700,4.44225,2476.1,2476.0,0.40384]
[1725470015003,0.40388,2475.9,2475.8,0.40388]
[1725470015205,0.40388,2475.9,2475.4,3.11591865]
[1725470015206,0.40389,2475.8,2475.7,0.40389]
[1725470015400,3.96602595,2475.8,2475.7,0.40389]
[1725470015600,7.60133595,2475.8,2475.7,0.40389]
[1725470016302,4.4309,2475.8,2475.7,0.40389]
[1725470016609,0.3917,2475.8,2475.7,0.40389]
[1725470016796,0.3917,2475.8,2475.7,1.41365]
[1725470018099,0.3917,2475.8,2475.7,0.40389]
[1725470020909,0.3917,2475.8,2475.6,0.40391]
[1725470020910,4.83479,2475.8,2475.6,0.40391]
[1725470021106,3.96602595,2475.8,2475.6,0.40391]
[1725470021609,3.96602595,2475.8,2475.7,0.4039]
[1725470021610,3.56213595,2475.8,2475.7,0.4039]
[1725470022113,7.60133595,2475.8,2475.7,0.4039]
[1725470022302,4.4309,2475.8,2475.7,0.4039]
[1725470023610,7.60583109,2475.8,2475.7,0.4039]
[1725470023816,3.56663109,2475.8,2475.7,1.41366]
[1725470024111,3.56663109,2475.8,2475.7,0.4039]
[1725470024506,3.56653685,2475.8,2475.7,0.4039]
[1725470025013,8.13241387,2475.8,2475.7,0.4039]
[1725470025217,8.53629387,2475.8,2475.7,0.4039]
[1725470025520,0.4039,2475.7,2475.5,0.40392]
[1725470025814,4.10789566,2475.7,2475.5,0.40392]
[1725470026011,4.46614986,2475.6,2475.4,0.00605865]
[1725470026308,4.46614986,2475.6,2475.5,0.40393]
[1725470026504,8.50534986,2475.6,2475.4,0.00605865]
[1725470026703,7.6173134,2475.5,2475.4,0.00605865]
[1725470027013,4.44313,2475.5,2475.4,0.00605865]
[1725470027210,8.14715986,2475.5,2475.4,0.00605865]
[1725470027511,4.0392,2475.5,2475.4,0.41000865]
[1725470027709,4.44313,2475.5,2475.4,0.41000865]
[1725470028209,7.23553835,2475.6,2475.5,0.40393]
[1725470028620,0.3582,2475.6,2475.5,0.40393]
[1725470029407,0.76212,2475.6,2475.5,0.40393]
[1725470029710,0.3582,2475.6,2475.5,0.40393]
[1725470030616,0.76212,2475.6,2475.5,0.40393]
[1725470031207,0.40393,2475.5,2475.4,2.50999865]
[1725470031407,0.76213,2475.6,2475.5,0.40393]
[1725470031609,0.3582,2475.6,2475.5,0.40393]
[1725470032415,4.80132,2475.6,2475.5,0.40393]
[1725470032617,0.40393,2475.5,2475.4,2.50999865]
[1725470032816,0.40393,2475.5,2475.4,0.00605865]
[1725470033013,0.40404,2474.9,2474.7,0.203]
[1725470033221,1.15006,2474.8,2474.4,3.2078]
[1725470033410,1.1135,2474.8,2474.3,2.4483]
[1725470033615,3.61189,2474.6,2474.4,0.4041]
[1725470033812,0.4041,2474.5,2474.3,2.50412]
[1725470034115,3.61794865,2474.6,2474.4,0.40411]
[1725470034316,3.61794865,2474.6,2474.5,0.4041]
[1725470034511,0.00605865,2474.6,2474.5,2.5041]
[1725470034715,0.00605865,2474.6,2474.5,0.4041]
[1725470034918,3.21385865,2474.6,2474.5,0.4041]
[1725470035416,7.25465865,2474.6,2474.3,2.1]
[1725470035623,0.40411,2474.4,2474.2,0.00605865]
[1725470035920,0.3723,2474.3,2474.2,0.41019865]
[1725470036118,0.7342,2474.3,2474.2,0.41019865]
[1725470036510,1.13833,2474.3,2474.2,0.41019865]
[1725470036706,0.7342,2474.3,2474.2,0.41019865]
[1725470037114,0.7342,2474.3,2474.2,0.00605865]
[1725470037115,5.17993,2474.3,2474.2,0.00605865]
[1725470037314,5.55903,2474.3,2474.2,0.00605865]
[1725470038522,11.55903,2474.3,2474.2,0.00605865]
[1725470038723,11.1549,2474.3,2473.7,5.3078]
[1725470039021,3.61195,2474.2,2474.0,0.40417]
[1725470039223,3.2078,2474.2,2474.1,0.40416]
[1725470039518,7.2494,2474.2,2474.1,0.40416]
[1725470040315,7.65355,2474.2,2474.1,0.40416]
[1725470040511,7.65356,2474.2,2474.0,0.40418]
[1725470041019,1.41463,2474.0,2473.9,0.00605865]
[1725470041316,1.41463,2474.0,2473.7,3.2078]
[1725470041317,0.40421,2473.8,2473.7,3.2078]
[1725470041519,1.41475,2473.8,2473.7,3.2078]
[1725470041723,11.45715,2473.8,2473.7,3.2078]
[1725470041926,12.19515,2473.8,2473.7,3.2078]
[1725470042110,0.40427,2473.5,2473.2,5.3078]
[1725470042314,14.99874,2473.8,2473.2,3.2078]
[1725470042315,0.40429,2473.3,2473.2,3.2078]
[1725470042711,0.40429,2473.3,2473.2,3.61211]
[1725470043122,4.44749,2473.3,2473.2,3.2078]
[1725470043427,11.45823,2473.3,2473.2,3.2078]
[1725470043627,0.40431,2473.2,2473.1,0.00605865]
[1725470043928,4.81931,2473.2,2473.1,0.00605865]
[1725470044115,10.81931,2473.2,2473.1,0.00605865]
[1725470044322,11.83009,2473.2,2473.1,0.00605865]
[1725470044518,11.78098,2473.2,2472.7,0.40439]
[1725470044719,0.40436,2472.9,2472.7,0.40439]
[1725470044925,3.2078,2473.0,2472.6,2.5044]
[1725470045131,3.2078,2473.0,2472.6,2.1]
[1725470045325,3.61215,2473.0,2472.7,0.40439]
[1725470045523,3.61215,2473.0,2472.6,2.10605865]
[1725470045720,3.61215,2473.0,2472.8,0.40437]
[1725470045923,3.2078,2473.0,2472.6,2.10605865]
[1725470046122,0.00605865,2473.1,2472.8,2.1]
[1725470046332,0.00605865,2473.1,2473.0,0.40434]
[1725470046523,0.00605865,2473.1,2472.8,2.1]
[1725470046720,0.00605865,2473.1,2472.9,0.40435]
[1725470046924,0.41038865,2473.1,2472.9,0.40435]
[1725470047127,0.00605865,2473.1,2473.0,0.40434]
[1725470048330,0.00605865,2473.1,2472.6,0.00605865]
[1725470048331,0.40434,2473.0,2472.6,0.00605865]
[1725470048625,3.2078,2472.9,2472.8,0.40436]
[1725470048830,3.2078,2472.9,2472.6,0.00605865]
[1725470049033,3.2078,2472.9,2472.6,0.41045865]
[1725470049034,0.40439,2472.7,2472.6,0.41045865]
[1725470049332,0.77028,2472.8,2472.6,0.41045865]
[1725470049528,3.2078,2472.9,2472.8,0.40437]
[1725470049731,3.61215,2473.0,2472.8,0.40437]
[1725470049919,0.40436,2472.9,2472.8,0.40437]
[1725470050725,3.61215,2473.0,2472.9,0.40436]
[1725470050925,3.2078,2473.0,2472.9,0.40436]
[1725470051228,4.11705865,2473.1,2473.0,0.40434]
[1725470052129,4.11705865,2473.1,2473.0,2.50434]
[1725470053130,0.00605865,2473.1,2473.0,2.50434]
[1725470062038,0.00605865,2473.1,2473.0,0.40434]
[1725470062439,0.41039865,2473.1,2472.9,0.40436]
[1725470062634,0.40434,2473.0,2472.8,5.71216]
[1725470062850,0.3576,2472.9,2472.8,5.71216]
[1725470064838,0.00605865,2473.1,2473.0,0.40434]
[1725470065140,0.00605865,2473.1,2472.9,1.01089]
[1725470065141,0.40435,2473.0,2472.8,5.3078]
[1725470065340,0.78756,2472.9,2472.8,5.71217]
[1725470065545,0.78756,2472.9,2472.8,3.2078]
[1725470065842,0.3832,2472.9,2472.8,3.61217]
[1725470066641,0.3832,2472.9,2472.8,0.40437]
[1725470067549,0.78756,2472.9,2472.8,0.40437]
[1725470067751,0.3832,2472.9,2472.8,0.40437]
[1725470069450,0.40439,2472.7,2472.6,0.41045865]
[1725470069746,0.40448,2472.2,2472.1,0.40448]
[1725470070343,1.16457,2472.3,2472.1,0.40448]
[1725470070648,1.16457,2472.3,2472.2,0.40447]
[1725470071042,5.20937,2472.3,2472.2,0.40447]
[1725470071246,5.20937,2472.3,2472.0,2.10605865]
[1725470071247,4.8049,2472.3,2472.0,2.10605865]
[1725470071446,1.16456,2472.3,2472.2,0.40447]
[1725470071741,0.7601,2472.3,2472.2,0.40447]
[1725470071946,4.8049,2472.3,2472.2,0.40447]
[1725470073153,0.7601,2472.3,2472.2,0.40447]
[1725470076251,0.3849,2472.5,2472.4,0.40444]
[1725470082053,0.3849,2472.5,2472.2,2.1]
[1725470082252,0.40446,2472.3,2472.2,0.40447]
[1725470082455,0.78375,2472.4,2472.3,0.40446]
[1725470084853,0.3793,2472.4,2472.3,0.40446]
[1725470085060,4.4241,2472.4,2472.2,0.40447]
[1725470085260,0.3793,2472.4,2472.2,0.40446]
[1725470085465,0.78375,2472.4,2472.3,0.40446]
[1725470085666,4.82855,2472.4,2472.3,0.40446]
[1725470087065,4.4241,2472.4,2472.3,0.40446]
[1725470087262,4.82854,2472.4,2472.3,0.40446]
[1725470087462,0.40447,2472.3,2472.2,0.40446]
[1725470087663,0.78375,2472.4,2472.3,0.40446]
[1725470087966,4.82855,2472.4,2472.3,0.40446]
[1725470088565,0.40447,2472.3,2472.2,0.40446]
[1725470088957,3.93113957,2472.4,2472.3,0.40446]
[1725470089265,0.40448,2472.2,2472.1,0.40449]
[1725470089671,4.44928,2472.2,2472.1,0.40449]
[1725470090570,0.40449,2472.1,2472.0,0.41054865]
[1725470090767,4.25569822,2472.1,2472.0,0.41054865]
[1725470093272,4.25569822,2472.1,2472.0,0.41056865]
[1725470093469,5.26692822,2472.1,2472.0,0.00605865]
[1725470094268,5.26692822,2472.1,2472.0,0.41056865]
[1725470094768,13.2526,2472.1,2471.7,0.40455]
[1725470094971,3.61236,2471.8,2471.7,0.40455]
[1725470095375,0.40457,2471.7,2471.6,0.40455]
[1725470095769,3.2078,2471.8,2471.3,1.01154]
[1725470095770,3.61235,2471.8,2471.7,0.40455]
[1725470096375,3.2078,2471.8,2471.7,0.40455]
[1725470096772,3.2078,2471.8,2471.7,1.41594]
[1725470096972,0.00605865,2472.0,2471.9,1.41583]
[1725470097171,0.00605865,2472.0,2471.9,0.40452]
[1725470097371,0.00605865,2472.0,2471.9,1.41583]
[1725470097782,0.00605865,2472.0,2471.9,0.40452]
[1725470100778,0.00605865,2472.0,2471.9,5.46143]
[1725470101384,0.00605865,2472.0,2471.9,6.47274]
[1725470101772,3.2078,2472.6,2472.5,0.40442]
[1725470101976,0.7449,2472.7,2472.6,0.40441]
[1725470102184,0.7449,2472.7,2472.5,0.40442]
[1725470102387,0.7449,2472.7,2472.1,3.2078]
[1725470102388,1.01103,2472.6,2472.1,3.2078]
[1725470102573,1.01104,2472.6,2472.1,4.21903]
[1725470102779,0.40443,2472.5,2472.4,0.40444]
[1725470102978,4.0448,2472.5,2472.4,0.40444]
[1725470103176,3.61826865,2472.6,2472.5,0.40442]
[1725470103780,3.61826865,2472.6,2472.4,0.40443]
[1725470103781,0.40442,2472.5,2472.4,0.40443]
[1725470104181,3.21385865,2472.6,2472.3,0.40445]
[1725470104182,0.40444,2472.4,2472.3,0.40445]
[1725470104374,0.40444,2472.4,2472.1,3.21385865]
[1725470104577,0.7568,2472.3,2472.2,0.40447]
[1725470104781,0.7568,2472.3,2472.1,3.21385865]
[1725470104985,0.3921,2472.2,2472.1,3.61833865]
[1725470105384,0.79657,2472.2,2472.1,3.61833865]
[1725470105694,0.79657,2472.2,2472.1,3.21385865]
[1725470106687,1.80776,2472.2,2472.1,0.00605865]
[1725470107092,5.85256,2472.2,2472.1,0.00605865]
[1725470108287,0.40456,2471.7,2471.3,6.31935]
[1725470108482,0.40456,2471.7,2471.3,7.05495]
[1725470108689,0.40455,2471.8,2471.3,7.05495]
[1725470108892,0.40455,2471.8,2471.6,0.40456]
[1725470108893,0.3535,2471.7,2471.6,0.40456]
[1725470109892,0.3535,2471.7,2471.5,0.40457]
[1725470110095,4.71515986,2472.4,2471.6,4.21923]
[1725470110293,0.40449,2472.1,2471.7,2.1]
[1725470110490,0.40449,2472.1,2471.8,0.40454]
[1725470110695,0.40449,2472.1,2471.9,0.40452]
[1725470111197,0.40451,2472.0,2471.7,0.75294]
[1725470111396,0.40451,2472.0,2471.8,0.40454]
[1725470111594,0.76503,2471.9,2471.7,0.3484]
[1725470111894,0.3838,2471.8,2471.3,5.3078]
[1725470112096,0.40458,2471.6,2471.1,0.40465]
[1725470112299,0.40458,2471.6,2471.0,3.83467]
[1725470112500,0.76509,2471.5,2471.3,0.40461]
[1725470112999,0.3605,2471.5,2471.3,0.40461]
[1725470113304,0.40464,2471.2,2471.0,0.723]
[1725470113506,0.40465,2471.2,2470.9,3.61248]
[1725470113798,0.7718,2471.1,2471.0,8.94276171]
[1725470115897,0.00605865,2471.3,2471.2,0.40464]
[1725470116295,0.00605865,2471.3,2471.2,14.67044]
[1725470116500,0.00605865,2471.3,2471.2,25.40327465]
[1725470116799,0.00605865,2471.3,2471.2,19.40327465]
[1725470117005,3.70402986,2471.6,2471.5,0.40459]
[1725470117202,3.70402986,2471.6,2471.5,6.72387]
[1725470117405,3.70402986,2471.6,2471.5,3.96099]
[1725470117608,3.70402986,2471.6,2471.5,0.75319]
[1725470118313,3.70402986,2471.6,2471.5,9.01887]
[1725470118510,3.70402986,2471.6,2471.5,10.10739]
[1725470118700,3.70402986,2471.6,2471.5,16.10739]
[1725470119208,3.70402986,2471.6,2471.5,8.00739]
[1725470119701,3.70402986,2471.6,2471.5,3.96099]
[1725470120907,3.70402986,2471.6,2471.5,8.00739]
[1725470121102,0.00605865,2471.8,2471.7,0.40455]
[1725470126508,0.00605865,2471.8,2471.7,5.46154]
[1725470126813,0.00605865,2471.8,2471.7,8.57293]
[1725470127013,0.00605865,2471.8,2471.7,16.98237579]
[1725470129708,0.00605865,2471.8,2471.7,10.83677579]
[1725470129920,0.00605865,2471.8,2471.7,14.88237579]
[1725470130121,0.00605865,2471.8,2471.7,10.83677579]
[1725470131018,0.00605865,2471.8,2471.7,8.81399579]
[1725470131316,0.00605865,2471.8,2471.7,9.82538579]
[1725470131518,0.3854,2472.2,2472.1,0.40449]
[1725470131721,0.7396,2472.2,2472.1,0.40449]
[1725470135721,0.00605865,2472.4,2472.3,0.40446]
[1725470137217,0.00605865,2472.4,2472.3,8.55874016]
[1725470137415,0.41049865,2472.4,2472.1,3.61228]
[1725470137719,0.41049865,2472.4,2472.2,8.55874016]
[1725470137919,0.00605865,2472.4,2472.2,8.55874016]
[1725470138122,0.00605865,2472.4,2471.7,3.84589]
[1725470138123,5.31385865,2472.4,2471.7,3.84589]
[1725470138316,3.61829865,2472.4,2472.2,0.40446]
[1725470138720,7.32232851,2472.4,2472.2,0.40446]
[1725470139025,4.11453851,2472.4,2472.2,0.40447]
[1725470139219,3.71008851,2472.4,2472.2,0.40447]
[1725470139519,4.11452851,2472.4,2472.2,0.40446]
[1725470139722,3.71008851,2472.4,2472.3,0.40446]
[1725470140019,4.11452851,2472.4,2472.2,0.40446]
[1725470140222,3.71008851,2472.4,2472.2,0.40446]
[1725470140524,3.71008851,2472.4,2472.2,0.40447]
[1725470140525,0.00605865,2472.4,2472.2,0.40447]
[1725470140919,0.00605865,2472.4,2472.3,0.40446]
[1725470141815,0.41049865,2472.4,2472.3,0.40446]
[1725470142021,0.40446,2472.3,2471.7,4.95367]
[1725470142218,0.7364,2472.2,2472.1,0.40449]
[1725470143024,1.0931,2472.2,2472.1,0.40449]
[1725470143818,3.71008851,2472.4,2472.3,0.40446]
[1725470143819,0.00605865,2472.4,2472.3,0.40446]
[1725470144912,0.00605865,2472.4,2472.3,1.41561]
[1725470145118,0.00605865,2472.4,2472.3,0.40446]
[1725470147416,0.00605865,2472.4,2472.3,10.76821]
[1725470147616,0.00605865,2472.4,2472.3,11.77936]
[1725470147813,0.00605865,2472.4,2472.3,0.40446]
[1725470148121,0.00605865,2472.4,2471.9,5.3078]
[1725470148316,0.40447,2472.2,2471.9,3.2078]
[1725470148522,0.40447,2472.2,2472.0,0.40451]
[1725470148523,0.7614,2472.1,2472.0,0.40451]
[1725470148725,1.1659,2472.1,2471.9,0.40452]
[1725470148926,0.78201,2472.0,2471.9,0.40452]
[1725470149127,0.78202,2472.0,2471.8,0.40453]
[1725470149525,0.78201,2472.0,2471.8,0.40453]
[1725470149828,0.78201,2472.0,2471.7,8.5650884]
[1725470150125,0.78201,2472.0,2471.8,0.40453]
[1725470150316,0.78201,2472.0,2471.9,0.40452]
[1725470150317,0.3775,2472.0,2471.9,0.40452]
[1725470150925,4.4231,2472.0,2471.9,0.40452]
[1725470151128,0.3775,2472.0,2471.9,0.40452]
[1725470152327,4.4231,2472.0,2471.9,0.40452]
[1725470153126,0.3775,2472.0,2471.9,0.40452]
[1725470154930,0.7614,2472.1,2472.0,0.40451]
[1725470154931,0.3868,2472.1,2472.0,0.40451]
[1725470155228,0.776,2472.1,2472.0,0.40451]
[1725470158332,0.776,2472.1,2471.5,0.40458]
[1725470158333,0.40455,2471.8,2471.5,0.40458]
[1725470158521,0.7511,2471.7,2471.3,0.00605865]
[1725470158827,0.78118,2471.6,2471.4,0.4046]
[1725470159027,0.3766,2471.6,2471.5,0.40459]
[1725470159629,4.84425879,2472.0,2471.8,0.40454]
[1725470160027,4.43974879,2472.0,2471.9,0.40452]
[1725470160324,4.43974879,2472.0,2471.5,3.2078]
[1725470160519,0.40452,2471.9,2471.7,0.40455]
[1725470160735,4.84426879,2472.0,2471.7,0.40455]
[1725470161031,4.84426879,2472.0,2471.8,0.40454]
[1725470161332,4.43974879,2472.0,2471.8,0.40454]
[1725470161634,4.43974879,2472.0,2471.9,0.40452]
[1725470162135,8.48534879,2472.0,2471.9,0.40452]
[1725470162923,4.43974879,2472.0,2471.9,0.40452]
[1725470163124,4.06314879,2472.0,2471.9,0.40452]
[1725470165541,4.06314879,2472.0,2471.6,0.7182]
[1725470165736,4.06314879,2472.0,2471.9,0.40452]
[1725470166244,4.06314879,2472.0,2471.8,0.40453]
[1725470166540,4.06314879,2472.0,2471.9,0.40452]
[1725470169837,4.06314879,2472.0,2471.7,8.29592384]
[1725470169838,4.46766879,2472.0,2471.7,8.29592384]
[1725470170050,4.46765879,2472.0,2471.7,8.29592384]
[1725470170347,4.46765879,2472.0,2471.8,0.40453]
[1725470171038,4.46765879,2472.0,2471.7,8.29592384]
[1725470171039,4.06314879,2472.0,2471.9,0.40452]
[1725470171940,3.70494879,2472.1,2472.0,0.40451]
[1725470172133,4.22656631,2472.2,2472.1,1.41572]
[1725470172134,3.70494879,2472.2,2472.1,1.41572]
[1725470172340,4.98536631,2472.3,2472.2,0.40447]
[1725470172735,0.7588,2472.3,2472.2,1.41566]
[1725470173043,0.7588,2472.3,2472.2,0.40447]
[1725470174235,4.46374879,2472.3,2472.2,0.40447]
[1725470174639,0.7588,2472.3,2472.2,0.40447]
[1725470177853,0.7588,2472.3,2472.2,1.41566]
[1725470178141,0.00605865,2472.4,2472.3,2.42676]
[1725470178350,0.00605865,2472.4,2472.3,8.92896]
[1725470178539,0.00605865,2472.4,2472.3,9.31866]
[1725470180544,0.00605865,2472.4,2472.3,17.71508037]
[1725470182341,0.37,2472.7,2472.6,1.41544]
[1725470182845,3.70494879,2473.0,2472.7,1.41538]
[1725470183042,0.7497,2473.0,2472.9,1.41526]
[1725470183244,4.111,2473.2,2473.0,1.01086]
[1725470183434,0.7425,2473.3,2473.2,0.40431]
[1725470183639,4.85173879,2473.3,2473.2,0.40431]
[1725470183848,4.44744879,2473.3,2473.2,0.40431]
[1725470184144,4.85174879,2473.3,2473.1,0.40431]
[1725470184550,0.3581,2473.2,2473.1,0.40431]
[1725470185952,3.70494879,2473.3,2473.2,1.41509]
[1725470186149,3.70494879,2473.3,2473.2,3.51509]
[1725470186346,3.70494879,2473.3,2473.2,12.45249615]
[1725470186649,1.14832865,2473.5,2473.3,0.40429]
[1725470186838,0.74405865,2473.5,2473.2,8.99361615]
[1725470187034,0.74405865,2473.5,2473.2,8.99360615]
[1725470187244,1.14832865,2473.5,2473.3,0.40429]
[1725470187551,1.14832865,2473.5,2473.3,9.01940275]
[1725470187848,1.14832865,2473.5,2473.3,0.40429]
[1725470188250,0.74405865,2473.5,2473.4,0.40428]
[1725470188440,1.14831865,2473.5,2473.3,0.40428]
[1725470189240,1.14832865,2473.5,2473.4,0.40428]
[1725470189443,0.74405865,2473.5,2473.4,0.40428]
[1725470189643,1.14831865,2473.5,2473.4,0.40428]
[1725470190144,0.74405865,2473.5,2473.4,0.40428]
[1725470190346,1.14831865,2473.5,2473.4,0.40428]
[1725470190645,0.74405865,2473.5,2473.4,0.40428]
[1725470190846,1.14831865,2473.5,2473.4,0.40428]
[1725470191444,0.40428,2473.4,2473.3,0.40428]
[1725470191650,0.40429,2473.4,2473.1,8.27596028]
[1725470191841,0.40429,2473.4,2473.3,0.40429]
[1725470192041,1.14832865,2473.5,2473.4,0.40428]
[1725470192246,0.74405865,2473.5,2473.4,0.40428]
[1725470193451,0.40429,2473.4,2473.3,0.40429]
[1725470193649,3.61209,2473.4,2473.3,0.40429]
[1725470196545,0.4043,2473.3,2473.2,0.4043]
[1725470196751,0.40436,2472.9,2472.8,0.40436]
[1725470197050,1.41531,2472.8,2472.7,0.00605865]
[1725470197254,0.40443,2472.5,2472.4,0.40442]
[1725470197455,3.2078,2472.5,2472.1,2.1]
[1725470197648,5.05499,2472.7,2472.1,0.40448]
[1725470197649,3.2078,2472.2,2472.1,0.40448]
[1725470198143,3.9399,2472.2,2472.0,0.40449]
[1725470198348,3.9399,2472.2,2472.1,0.40449]
[1725470198550,0.7321,2472.2,2472.1,0.40449]
[1725470199343,3.9399,2472.2,2472.1,0.40449]
[1725470200254,4.34437,2472.2,2472.0,0.4045]
[1725470200557,0.3687,2472.1,2472.0,0.4045]
[1725470200857,0.3687,2472.1,2471.9,0.00605865]
[1725470201053,0.77319,2472.1,2471.9,0.00605865]
[1725470201255,0.3687,2472.1,2471.9,0.41057865]
[1725470201455,0.7732,2472.1,2471.9,0.00605865]
[1725470201956,0.7732,2472.1,2471.9,0.41057865]
[1725470202756,0.3687,2472.1,2471.9,0.41057865]
[1725470202955,0.3687,2472.1,2472.0,0.40451]
[1725470203360,0.3687,2472.1,2471.9,0.41056865]
[1725470203561,0.3687,2472.1,2471.9,0.00605865]
[1725470203755,0.40451,2472.0,2471.9,0.00605865]
[1725470204265,1.01132,2471.9,2470.9,1.01172]
[1725470204556,3.2078,2471.4,2470.8,5.51456973]
[1725470204864,0.3903,2471.3,2471.2,0.40464]
[1725470206562,3.2078,2471.6,2471.4,0.40459]
[1725470206857,3.2078,2471.6,2471.2,2.1]
[1725470207259,3.2078,2471.6,2471.4,0.40459]
[1725470207753,0.7819,2471.7,2471.2,5.3078]
[1725470207957,0.7819,2471.7,2471.5,0.40458]
[1725470208154,3.9897,2471.7,2471.5,0.40458]
[1725470208562,3.2078,2471.6,2471.5,0.40458]
[1725470208759,3.9897,2471.7,2471.5,0.40458]
[1725470209257,0.7819,2471.7,2471.6,0.40457]
[1725470210861,0.7819,2471.7,2471.3,8.38054349]
[1725470211160,0.7819,2471.7,2471.5,0.40458]
[1725470211755,0.7819,2471.7,2471.6,0.40457]
[1725470211954,0.7819,2471.7,2471.5,0.40458]
[1725470212852,0.7819,2471.7,2471.6,0.40457]
[1725470213053,4.111,2472.0,2471.3,8.38054349]
[1725470213054,4.111,2472.0,2471.5,2.1]
[1725470213257,4.111,2472.0,2471.9,0.40452]
[1725470213464,3.9323,2472.1,2472.0,0.40451]
[1725470213655,3.9323,2472.1,2471.9,0.40451]
[1725470213960,3.9323,2472.1,2471.7,2.1]
[1725470214163,3.9323,2472.1,2471.9,0.40451]
[1725470215160,3.9323,2472.1,2472.0,0.40451]
[1725470215659,3.2078,2472.1,2472.0,0.40451]
[1725470216252,0.00605865,2472.2,2472.1,0.40449]
[1725470216657,0.00605865,2472.2,2472.1,2.50449]
[1725470216858,0.00605865,2472.2,2472.1,0.40449]
[1725470219260,0.00605865,2472.2,2471.9,3.2078]
[1725470219261,0.4045,2472.1,2471.9,3.2078]
[1725470219464,0.3852,2472.0,2471.9,3.61231]
[1725470219765,0.41053865,2472.2,2471.9,3.61231]
[1725470219766,0.00605865,2472.2,2472.1,0.40449]
[1725470219962,0.00605865,2472.2,2471.9,3.2078]